bitfinex/quotes_SOLUSD_20220118
["timestamp","ask_amount","ask_price","bid_price","bid_amount"]
[1642525150569,6.06439994,137.44,137.39,6.0]
[1642525150771,2.91,137.43,137.37,6.0]
[1642525151178,2.91,137.43,137.37,50.31588749]
[1642525151572,2.91,137.43,137.39,10.9191]
[1642525151772,38.49617637,137.44,137.39,10.9191]
[1642525151971,38.49617637,137.44,137.38,0.25]
[1642525151972,35.58617637,137.44,137.4,6.0]
[1642525152178,35.58617637,137.44,137.38,0.25]
[1642525152371,35.58617637,137.44,137.38,6.25]
[1642525153475,10.9185,137.45,137.4,10.9183]
[1642525153710,2.91,137.44,137.4,10.9183]
[1642525153874,10.9185,137.45,137.41,6.0]
[1642525154276,3.16,137.44,137.41,6.0]
[1642525154477,3.03219997,137.43,137.38,30.6086]
[1642525154679,6.06439994,137.43,137.38,30.6086]
[1642525155176,6.06439994,137.43,137.38,6.0]
[1642525155579,6.06439994,137.43,137.39,11.169]
[1642525155979,10.9185,137.45,137.4,6.0]
[1642525156479,38.67584433,137.44,137.4,6.0]
[1642525157078,10.9185,137.45,137.4,6.0]
[1642525157494,10.9185,137.45,137.4,16.9184]
[1642525157880,13.8277,137.46,137.4,16.9184]
[1642525158081,2.91,137.46,137.41,37.92474838]
[1642525158482,2.91,137.46,137.42,6.0]
[1642525159581,49.41633868,137.46,137.42,6.0]
[1642525159982,60.33403868,137.46,137.4,6.0]
[1642525160182,0.25,137.45,137.4,6.25]
[1642525160383,0.25,137.45,137.4,0.25]
[1642525160784,0.25,137.45,137.38,16.92]
[1642525160985,2.91,137.44,137.38,6.0]
[1642525161213,73.44,137.43,137.34,36.3846]
[1642525161384,2.911,137.42,137.31,12.51773318]
[1642525161584,11.441,137.42,137.31,12.51773318]
[1642525161883,40.02144283,137.41,137.32,41.71882177]
[1642525162086,2.911,137.4,137.32,41.71882177]
[1642525162285,2.911,137.4,137.32,54.34599113]
[1642525162484,2.912,137.42,137.33,4.86456936]
[1642525162684,2.911,137.43,137.33,10.86456936]
[1642525162884,0.25,137.43,137.34,1.70256936]
[1642525163086,2.911,137.42,137.35,6.0]
[1642525163284,46.19900133,137.42,137.35,50.72757937]
[1642525163485,57.11990133,137.42,137.35,61.64887937]
[1642525163687,0.25,137.41,137.35,61.64887937]
[1642525165589,11.172,137.41,137.35,61.64887937]
[1642525165989,14.083,137.41,137.35,61.64887937]
[1642525166190,14.083,137.41,137.35,16.9213]
[1642525170895,2.911,137.41,137.36,0.25]
[1642525171097,1.95918325,137.42,137.37,10.9201]
[1642525171297,1.95918325,137.42,137.38,0.25]
[1642525171497,1.95918325,137.43,137.38,6.25]
[1642525171898,1.95918325,137.43,137.38,43.05113316]
[1642525172496,63.95705279,137.44,137.39,10.9188]
[1642525173498,0.25,137.43,137.39,10.9188]
[1642525175005,0.25,137.43,137.38,6.0]
[1642525175202,2.911,137.42,137.37,6.0]
[1642525175702,0.25,137.41,137.35,6.0]
[1642525175902,2.911,137.4,137.34,49.95528541]
[1642525176503,2.911,137.4,137.36,10.9215]
[1642525176704,1.95918325,137.42,137.37,0.25]
[1642525176903,1.95918325,137.42,137.37,6.25]
[1642525177603,39.99301969,137.42,137.38,16.9189]
[1642525177805,0.25,137.41,137.38,6.0]
[1642525178006,6.06439994,137.4,137.38,6.0]
[1642525178305,6.06439994,137.4,137.36,6.0]
[1642525178505,6.06439994,137.4,137.36,0.25]
[1642525178705,6.06439994,137.4,137.36,3.161]
[1642525179007,6.06439994,137.4,137.38,10.92]
[1642525179204,48.94754126,137.42,137.38,10.92]
[1642525179604,0.25,137.41,137.37,6.0]
[1642525179804,3.161,137.41,137.37,6.0]
[1642525180008,14.0825,137.41,137.37,6.0]
[1642525182107,16.04168325,137.41,137.35,6.0]
[1642525183510,73.19,137.4,137.33,10.924]
[1642525183741,10.9245,137.38,137.33,10.924]
[1642525183911,13.8365,137.38,137.34,6.0]
[1642525184112,13.8365,137.38,137.32,6.25]
[1642525184312,35.57273131,137.37,137.32,6.25]
[1642525184512,35.57273131,137.37,137.32,17.1747]
[1642525184711,13.8365,137.38,137.32,17.1747]
[1642525184912,14.0853,137.39,137.32,17.1747]
[1642525185316,3.162,137.39,137.32,18.87701735]
[1642525185813,3.162,137.39,137.33,35.45410029]
[1642525186018,2.912,137.39,137.35,10.9222]
[1642525186216,59.92349794,137.4,137.35,10.9222]
[1642525186620,59.92349794,137.4,137.36,6.0]
[1642525189019,2.911,137.39,137.36,16.9217]
[1642525189219,2.911,137.41,137.36,10.9217]
[1642525189422,1.95918325,137.42,137.37,6.0]
[1642525190020,1.95918325,137.42,137.37,43.54211121]
[1642525190423,1.95918325,137.42,137.38,16.9193]
[1642525191024,39.71951966,137.43,137.38,16.9193]
[1642525192757,3.161,137.42,137.38,16.9193]
[1642525193357,3.161,137.42,137.38,6.0]
[1642525193857,3.161,137.42,137.37,6.0]
[1642525194856,5.12018325,137.42,137.37,6.0]
[1642525195457,16.04078325,137.42,137.37,16.9208]
[1642525199763,16.04078325,137.42,137.37,6.0]
[1642525200163,89.23078325,137.42,137.37,6.0]
[1642525200464,89.23078325,137.42,137.35,6.0]
[1642525201062,89.23078325,137.42,137.34,6.0]
[1642525201266,1.95918325,137.41,137.34,6.0]
[1642525201464,55.18650183,137.39,137.34,6.0]
[1642525201663,128.37650183,137.39,137.34,6.0]
[1642525201864,0.25,137.38,137.33,2.411]
[1642525202065,2.912,137.38,137.33,2.411]
[1642525202267,117.45220183,137.39,137.34,6.0]
[1642525202465,4.87118325,137.4,137.34,6.0]
[1642525202666,1.95918325,137.4,137.34,6.0]
[1642525202870,1.95918325,137.4,137.35,0.25]
[1642525203167,1.95918325,137.4,137.37,10.9193]
[1642525203567,1.95918325,137.4,137.38,6.0]
[1642525203768,1.95918325,137.42,137.36,48.97255061]
[1642525203970,1.95918325,137.42,137.35,39.3086]
[1642525204169,2.911,137.41,137.36,6.0]
[1642525204671,0.25,137.4,137.36,16.9214]
[1642525204868,2.911,137.41,137.35,6.0]
[1642525205169,4.87018325,137.42,137.36,45.24988913]
[1642525205569,4.87018325,137.42,137.37,6.0]
[1642525206173,0.25,137.41,137.37,6.0]
[1642525206371,0.25,137.41,137.37,16.9208]
[1642525207074,4.87018325,137.42,137.37,16.9208]
[1642525207274,1.95918325,137.41,137.37,16.9208]
[1642525207674,1.95918325,137.41,137.39,10.9179]
[1642525207872,1.95918325,137.41,137.39,13.8289]
[1642525208073,3.95164921,137.44,137.4,6.25]
[1642525208375,3.95164921,137.46,137.4,6.25]
[1642525208676,0.25,137.45,137.4,6.25]
[1642525209174,0.25,137.45,137.41,43.68453282]
[1642525209376,0.25,137.45,137.42,10.9168]
[1642525209574,6.06439994,137.44,137.42,16.9168]
[1642525210379,0.25,137.45,137.42,16.9168]
[1642525210776,6.06439994,137.44,137.42,16.9168]
[1642525211778,0.25,137.45,137.42,16.9168]
[1642525212179,2.91,137.46,137.43,0.25]
[1642525212379,3.95164921,137.48,137.43,0.25]
[1642525212579,3.95164921,137.48,137.44,10.9137]
[1642525212778,3.95164921,137.48,137.45,0.25]
[1642525213079,6.11571684,137.51,137.45,46.03331407]
[1642525213279,3.95164921,137.52,137.45,43.12531407]
[1642525213482,3.95164921,137.52,137.46,2.908]
[1642525213681,3.95164921,137.52,137.47,0.25]
[1642525213881,3.95164921,137.52,137.48,45.23038044]
[1642525214081,3.95164921,137.52,137.48,56.14168044]
[1642525214481,13.8196,137.54,137.48,56.14168044]
[1642525215082,13.8196,137.54,137.49,6.0]
[1642525215282,13.8196,137.54,137.49,16.9113]
[1642525215683,0.25,137.53,137.49,16.9113]
[1642525216286,2.908,137.54,137.49,16.9113]
[1642525217613,0.25,137.53,137.49,6.0]
[1642525218013,13.8195,137.54,137.49,6.0]
[1642525218213,0.25,137.53,137.49,6.0]
[1642525218819,11.1624,137.53,137.49,6.0]
[1642525219013,11.1624,137.53,137.48,6.0]
[1642525219419,2.908,137.52,137.4,2.908]
[1642525219614,44.52225357,137.51,137.42,6.0]
[1642525219815,10.9158,137.49,137.42,6.0]
[1642525220019,48.76860006,137.48,137.42,6.0]
[1642525220215,49.01860006,137.48,137.42,6.0]
[1642525220817,10.9188,137.47,137.42,6.0]
[1642525221218,0.25,137.46,137.42,6.0]
[1642525221618,10.9188,137.47,137.42,6.0]
[1642525222222,0.25,137.46,137.42,6.0]
[1642525222620,11.168,137.46,137.42,6.0]
[1642525222823,19.571,137.46,137.4,2.91]
[1642525223019,2.91,137.45,137.36,13.38]
[1642525223220,0.25,137.44,137.4,6.0]
[1642525223420,0.25,137.44,137.37,6.25]
[1642525223619,0.25,137.44,137.37,6.0]
[1642525223822,10.921,137.43,137.37,45.94367649]
[1642525224424,35.43898999,137.44,137.37,56.86377649]
[1642525225124,46.35868999,137.44,137.37,16.9201]
[1642525225327,46.35868999,137.44,137.36,13.8315]
[1642525225524,2.911,137.43,137.36,2.91]
[1642525225725,0.25,137.42,137.36,2.91]
[1642525225926,2.911,137.41,137.36,2.91]
[1642525226129,47.72606079,137.4,137.36,2.91]
[1642525226325,47.97606079,137.4,137.36,2.91]
[1642525226528,47.97606079,137.4,137.37,6.0]
[1642525227127,6.06439994,137.39,137.35,6.0]
[1642525227528,6.06439994,137.39,137.35,16.9218]
[1642525227928,6.06439994,137.39,137.33,36.6056]
[1642525228130,3.162,137.38,137.31,49.09147591]
[1642525228728,0.25,137.38,137.31,46.17947591]
[1642525228928,2.912,137.37,137.31,84.39077448]
[1642525229131,2.912,137.37,137.32,10.9245]
[1642525229427,2.912,137.37,137.32,17.1745]
[1642525230228,2.912,137.37,137.32,16.9245]
[1642525231535,50.51046186,137.37,137.32,16.9245]
[1642525232238,13.8369,137.37,137.32,16.9245]
[1642525233642,0.25,137.38,137.32,16.9245]
[1642525233940,2.912,137.4,137.33,0.25]
[1642525234141,2.912,137.4,137.34,10.9226]
[1642525234941,2.912,137.4,137.35,6.0]
[1642525235342,0.25,137.39,137.35,6.0]
[1642525235542,2.911,137.38,137.35,6.0]
[1642525235742,6.06439994,137.37,137.35,6.0]
[1642525236143,6.06439994,137.37,137.33,17.1738]
[1642525240175,6.06439994,137.37,137.33,16.9238]
[1642525240377,42.63265364,137.36,137.32,2.912]
[1642525240573,2.912,137.35,137.32,2.912]
[1642525240972,0.25,137.34,137.32,2.912]
[1642525241172,7.023,137.34,137.32,2.912]
[1642525241373,17.9506,137.34,137.32,2.912]
[1642525242174,2.912,137.33,137.32,2.912]
[1642525242574,3.162,137.33,137.32,2.912]
[1642525242773,14.0901,137.33,137.32,2.912]
[1642525243075,11.1781,137.33,137.32,2.912]
[1642525244076,22.70529997,137.33,137.32,2.912]
[1642525244274,25.73749994,137.33,137.32,2.912]
[1642525245777,17.24249994,137.33,137.32,0.0001]
[1642525247679,6.31439994,137.33,137.32,0.0001]
[1642525249280,17.24269994,137.33,137.32,0.0001]
[1642525249882,24.03669994,137.33,137.27,6.0]
[1642525250189,73.44,137.32,137.25,6.0]
[1642525250386,10.9316,137.3,137.25,6.0]
[1642525250583,17.6196,137.3,137.24,6.0]
[1642525250783,52.67786214,137.29,137.23,2.912]
[1642525251083,46.0,137.28,137.23,0.0001]
[1642525251283,3.164,137.27,137.23,0.0001]
[1642525251483,10.787,137.27,137.16,4.12071166]
[1642525252081,47.2436,137.27,137.16,4.12071166]
[1642525252281,59.6951399,137.26,137.16,4.12071166]
[1642525252483,2.915,137.25,137.16,4.12071166]
[1642525252682,3.165,137.25,137.16,4.12071166]
[1642525252883,13.635,137.25,137.16,4.12071166]
[1642525253085,13.635,137.25,137.12,2.915]
[1642525253281,36.4675,137.24,137.11,26.18465369]
[1642525253481,2.915,137.23,137.11,66.11403265]
[1642525253681,3.165,137.23,137.12,6.0]
[1642525254081,14.1053,137.23,137.12,6.0]
[1642525256086,14.1053,137.23,137.13,0.25]
[1642525256386,14.0543,137.23,137.13,0.25]
[1642525256784,14.0543,137.23,137.12,6.0]
[1642525256985,73.19,137.22,137.12,6.0]
[1642525257188,10.9409,137.19,137.11,53.78547896]
[1642525257387,13.8569,137.19,137.11,50.87047896]
[1642525257587,0.25,137.18,137.11,50.87047896]
[1642525258188,0.25,137.18,137.11,10.9411]
[1642525258387,18.2884,137.18,137.1,2.916]
[1642525258688,86.576,137.17,137.06,2.916]
[1642525258889,86.576,137.17,137.04,2.916]
[1642525259090,0.25,137.16,137.05,44.36884899]
[1642525259291,2.916,137.15,137.05,44.36884899]
[1642525259492,49.28417097,137.14,137.03,7.03671166]
[1642525259693,49.28417097,137.14,137.03,4.12071166]
[1642525259694,2.916,137.13,137.03,4.12071166]
[1642525259892,10.47,137.12,137.03,4.12071166]
[1642525260092,2.918,137.11,137.03,4.12071166]
[1642525260296,2.918,137.11,136.96,14.87131166]
[1642525260297,0.25,137.1,136.96,14.87131166]
[1642525260496,2.919,137.09,136.99,36.11111787]
[1642525260692,10.9501,137.06,136.99,47.06061787]
[1642525260893,44.83173616,137.08,136.99,48.76293522]
[1642525261299,0.25,137.08,137.0,8.918]
[1642525261497,10.0,137.07,137.0,8.918]
[1642525261696,10.0,137.07,137.01,0.25]
[1642525261895,10.0,137.07,137.0,19.8668]
[1642525261896,10.0,137.07,137.0,6.0]
[1642525262096,10.0,137.07,137.01,0.25]
[1642525262296,10.0,137.07,136.99,39.02911787]
[1642525262521,3.169,137.06,136.99,36.11111787]
[1642525263324,10.9508,137.05,136.96,13.6696]
[1642525263527,2.919,137.04,136.97,6.0]
[1642525263723,0.25,137.06,136.97,6.0]
[1642525263724,2.919,137.05,136.97,6.0]
[1642525263925,2.919,137.05,136.97,8.919]
[1642525264125,0.25,137.04,136.97,8.919]
[1642525264324,12.919,137.05,136.98,46.17134215]
[1642525264527,10.0,137.05,136.99,8.919]
[1642525264724,10.0,137.05,136.99,9.169]
[1642525265524,10.0,137.05,136.99,20.119]
[1642525265826,2.919,137.05,136.99,20.119]
[1642525266727,13.8684,137.07,136.99,19.869]
[1642525266924,10.9494,137.07,136.99,19.869]
[1642525267125,3.169,137.06,136.99,19.869]
[1642525267525,3.169,137.06,136.99,16.95]
[1642525268526,2.919,137.06,137.0,0.25]
[1642525268727,2.919,137.08,137.01,13.8677]
[1642525269127,2.918,137.1,137.02,6.25]
[1642525269328,2.918,137.1,137.02,6.0]
[1642525269627,51.73465851,137.09,137.02,6.0]
[1642525269828,2.918,137.08,137.02,6.0]
[1642525270027,2.918,137.08,136.98,56.64134215]
[1642525270028,3.168,137.08,136.99,6.0]
[1642525270229,3.168,137.08,136.99,6.25]
[1642525270429,3.168,137.08,136.97,2.918]
[1642525270832,16.9498,137.07,136.97,13.8694]
[1642525271030,2.919,137.06,136.97,13.8694]
[1642525271230,9.524,137.06,136.97,13.8694]
[1642525271431,9.524,137.06,136.97,2.918]
[1642525271829,9.524,137.06,136.98,6.0]
[1642525272031,10.9526,137.04,136.98,6.0]
[1642525272230,44.53355639,137.03,136.98,6.0]
[1642525272430,51.78955639,137.03,136.98,6.0]
[1642525273231,124.97955639,137.03,136.98,6.0]
[1642525273734,51.53955639,137.03,136.96,6.0]
[1642525274435,10.9534,137.02,136.96,6.0]
[1642525274634,2.919,137.01,136.96,6.0]
[1642525275434,2.92,137.02,136.96,6.0]
[1642525276038,10.9541,137.01,136.94,10.9547]
[1642525276236,2.92,137.0,136.94,10.9547]
[1642525276436,2.92,137.0,136.93,3.28400896]
[1642525276637,0.25,136.99,136.93,0.36500896]
[1642525277036,0.25,136.99,136.93,11.32040896]
[1642525277237,0.25,136.99,136.94,6.0]
[1642525278141,2.92,137.02,136.94,6.0]
[1642525278542,10.9556,136.99,136.94,6.0]
[1642525278943,38.89414868,136.98,136.94,6.0]
[1642525279145,10.9556,136.99,136.94,6.0]
[1642525279543,0.25,136.98,136.94,6.0]
[1642525280341,10.9549,137.0,136.95,0.25]
[1642525280542,2.92,137.02,136.95,0.25]
[1642525280943,2.92,137.03,136.95,0.25]
[1642525281342,36.48710527,137.02,136.95,0.25]
[1642525281547,2.92,137.01,136.95,10.9537]
[1642525281741,0.25,137.0,136.95,10.9537]
[1642525281941,0.25,137.0,136.96,6.0]
[1642525282142,0.25,137.0,136.94,0.25]
[1642525283543,0.25,137.0,136.96,10.9531]
[1642525283943,0.25,137.0,136.97,6.0]
[1642525284147,6.06439994,136.99,136.97,6.0]
[1642525287250,6.06439994,136.99,136.93,3.28500896]
[1642525287251,0.25,136.98,136.94,6.0]
[1642525287557,2.92,136.97,136.93,0.36500896]
[1642525287751,0.25,136.96,136.93,0.36500896]
[1642525287952,8.98439994,136.95,136.93,0.36500896]
[1642525288151,15.27239994,136.95,136.93,0.36500896]
[1642525288350,36.96870931,136.94,136.93,0.36500896]
[1642525288551,37.21870931,136.94,136.93,0.36500896]
[1642525289383,48.17820931,136.94,136.93,0.36500896]
[1642525290589,37.21870931,136.94,136.93,0.36500896]
[1642525291485,8.98439994,136.95,136.93,0.36500896]
[1642525291689,6.06439994,136.95,136.93,0.36500896]
[1642525291884,2.92,136.99,136.93,0.36500896]
[1642525292083,2.92,137.0,136.93,0.36500896]
[1642525292287,0.25,136.98,136.93,0.36500896]
[1642525292685,3.17,136.98,136.93,11.32080896]
[1642525292884,3.17,136.98,136.93,0.36500896]
[1642525293686,87.3164,136.98,136.93,0.36500896]
[1642525295289,87.3164,136.98,136.89,16.9589]
[1642525296089,87.3164,136.98,136.89,6.0]
[1642525296695,87.3164,136.98,136.89,5.61706873]
[1642525296895,87.3164,136.98,136.86,33.9124]
[1642525297093,110.5961,136.98,136.87,0.25]
[1642525297296,10.9609,136.94,136.87,11.2105]
[1642525297495,9.04153875,136.93,136.87,11.2105]
[1642525297694,9.29153875,136.93,136.87,11.2105]
[1642525297894,6.37153875,136.93,136.87,11.2105]
[1642525298096,6.37153875,136.93,136.87,12.92302702]
[1642525298297,6.37153875,136.93,136.88,6.0]
[1642525298496,2.92,136.92,136.88,6.0]
[1642525298695,2.92,136.92,136.87,6.0]
[1642525298896,6.12153875,136.93,136.87,6.0]
[1642525299096,6.12153875,136.93,136.87,10.63252702]
[1642525299504,17.08253875,136.93,136.87,6.0]
[1642525299697,2.92,136.92,136.87,6.0]
[1642525299897,10.027,136.92,136.87,6.0]
[1642525300099,0.25,136.91,136.87,6.0]
[1642525300898,39.44706364,136.9,136.87,6.0]
[1642525301099,6.06439994,136.89,136.87,6.0]
[1642525301299,6.31439994,136.89,136.85,6.0]
[1642525301500,6.31439994,136.89,136.82,1.72103808]
[1642525301701,6.31439994,136.89,136.83,0.25]
[1642525301901,6.06439994,136.89,136.84,10.963]
[1642525302500,6.06439994,136.89,136.85,1.72103808]
[1642525302901,6.06439994,136.89,136.86,6.0]
[1642525303901,6.06439994,136.89,136.85,6.0]
[1642525304103,6.06439994,136.89,136.83,6.0]
[1642525304604,11.2148,136.88,136.83,6.0]
[1642525304802,35.56757742,136.87,136.83,6.0]
[1642525306504,35.56757742,136.87,136.84,0.25]
[1642525306706,2.922,136.91,136.84,0.25]
[1642525307211,2.922,136.93,136.84,1.97103808]
[1642525307407,2.922,136.93,136.85,2.922]
[1642525307606,47.47156285,136.92,136.85,48.19139371]
[1642525307809,2.922,136.96,136.86,12.93173808]
[1642525308106,2.922,136.96,136.87,8.92]
[1642525308306,2.92,136.97,136.88,0.25]
[1642525308906,10.9601,136.95,136.88,0.25]
[1642525309207,0.25,136.94,136.88,0.25]
[1642525309407,2.92,136.93,136.88,0.25]
[1642525309607,2.92,136.93,136.87,16.9604]
[1642525310208,36.54817856,136.92,136.88,0.25]
[1642525310807,36.54817856,136.92,136.87,16.9604]
[1642525312211,2.92,136.91,136.87,16.9604]
[1642525312609,2.92,136.91,136.87,6.0]
[1642525313011,0.25,136.9,136.86,16.9615]
[1642525313411,0.25,136.9,136.86,6.0]
[1642525313611,0.25,136.9,136.85,6.0]
[1642525314512,0.25,136.9,136.85,16.9621]
[1642525315316,2.92,136.91,136.86,0.25]
[1642525316613,2.92,136.91,136.86,11.2116]
[1642525317016,2.92,136.91,136.87,6.0]
[1642525317815,2.92,136.91,136.87,16.9601]
[1642525318416,36.54817856,136.92,136.87,16.9601]
[1642525320419,2.92,136.95,136.87,18.68539172]
[1642525320621,2.92,136.98,136.9,10.9575]
[1642525320821,0.25,136.97,136.9,10.9575]
[1642525321020,2.92,136.96,136.91,6.0]
[1642525321219,0.25,136.95,136.91,6.0]
[1642525321423,40.96526875,136.95,136.91,6.0]
[1642525321621,40.96526875,136.95,136.91,10.9572]
[1642525321823,2.92,136.94,136.91,10.9572]
[1642525322023,6.06439994,136.93,136.92,6.0]
[1642525322224,14.25139994,136.93,136.88,26.3606]
[1642525322425,2.92,136.92,136.88,2.92]
[1642525322663,0.25,136.91,136.89,6.0]
[1642525323066,3.17,136.91,136.89,6.0]
[1642525323269,3.03219997,136.9,136.89,6.0]
[1642525323465,13.46939994,136.9,136.89,6.0]
[1642525323667,38.69647855,136.89,136.88,6.0]
[1642525324266,38.69647855,136.89,136.88,16.96]
[1642525324472,38.69647855,136.89,136.88,10.96]
[1642525324666,38.69647855,136.89,136.88,16.96]
[1642525325070,6.06439994,136.9,136.88,16.96]
[1642525325267,6.06439994,136.9,136.89,6.0]
[1642525325469,6.06439994,136.9,136.89,16.9591]
[1642525325667,2.92,136.95,136.89,16.9591]
[1642525326069,39.66083125,136.94,136.89,16.9591]
[1642525328295,3.17,136.93,136.89,6.0]
[1642525328696,3.17,136.93,136.88,2.06439456]
[1642525329097,3.17,136.93,136.89,6.0]
[1642525329396,14.1311,136.93,136.88,2.06439456]
[1642525329597,14.1311,136.93,136.86,24.82529456]
[1642525329796,14.1311,136.93,136.86,2.06439456]
[1642525329997,6.0,136.92,136.86,2.06439456]
[1642525330201,3.172,136.91,136.86,2.06439456]
[1642525330500,45.41706169,136.9,136.86,2.06439456]
[1642525330698,3.172,136.89,136.84,13.02709456]
[1642525331303,2.922,136.89,136.85,6.0]
[1642525332700,45.41706169,136.9,136.85,6.0]
[1642525332898,0.25,136.89,136.85,6.0]
[1642525333102,2.922,136.88,136.84,6.0]
[1642525333900,39.37049404,136.87,136.84,6.0]
[1642525334104,3.03219997,136.86,136.84,6.0]
[1642525334301,39.37049404,136.87,136.84,10.9632]
[1642525334500,39.37049404,136.87,136.85,6.0]
[1642525335301,6.06439994,136.86,136.83,16.9634]
[1642525335502,6.06439994,136.86,136.83,17.2134]
[1642525336102,39.37049404,136.87,136.83,17.2134]
[1642525336502,2.923,136.92,136.83,18.94294491]
[1642525336704,0.25,136.91,136.83,18.94294491]
[1642525336903,2.922,136.9,136.83,18.94294491]
[1642525337509,45.98719455,136.89,136.83,18.94294491]
[1642525340907,45.98719455,136.89,136.83,54.68542617]
[1642525341105,2.922,136.9,136.83,127.87542617]
[1642525341307,2.922,136.92,136.84,2.922]
[1642525341512,2.922,136.95,136.86,10.9584]
[1642525341708,2.922,136.95,136.87,0.25]
[1642525341908,2.92,136.96,136.87,6.25]
[1642525342108,41.29284853,136.95,136.87,91.88959385]
[1642525342308,41.29284853,136.95,136.88,1.72954491]
[1642525342509,41.29284853,136.95,136.89,6.0]
[1642525342708,41.29284853,136.95,136.89,6.25]
[1642525342909,41.29284853,136.95,136.89,17.2077]
[1642525343308,41.29284853,136.95,136.89,18.93724491]
[1642525343510,41.29284853,136.95,136.9,41.11875898]
[1642525343709,41.29284853,136.95,136.91,0.25]
[1642525343908,13.8744,137.01,136.91,18.93394491]
[1642525344310,2.92,137.01,136.91,18.93394491]
[1642525344712,2.92,137.02,136.92,2.92]
[1642525344911,2.92,137.02,136.91,7.97954491]
[1642525345111,13.8737,137.02,136.91,7.97954491]
[1642525345312,13.8737,137.02,136.91,6.25]
[1642525345712,37.81986282,137.01,136.91,6.25]
[1642525345914,2.92,137.0,136.91,6.25]
[1642525346114,14.1255,137.0,136.93,10.9557]
[1642525346516,14.1255,137.0,136.94,6.0]
[1642525347113,14.1255,137.0,136.91,6.25]
[1642525347314,14.1255,137.0,136.92,10.9563]
[1642525347513,14.1255,137.0,136.93,6.0]
[1642525347813,14.1255,137.0,136.91,6.25]
[1642525348014,6.0,136.99,136.91,6.25]
[1642525348213,10.9582,136.97,136.91,6.0]
[1642525348415,35.35813521,136.96,136.91,6.0]
[1642525348616,2.92,136.95,136.91,6.0]
[1642525348813,2.92,136.95,136.9,6.0]
[1642525349213,2.92,136.95,136.89,6.0]
[1642525349414,0.25,136.94,136.89,6.0]
[1642525349613,2.92,136.93,136.89,16.9591]
[1642525349813,36.14009476,136.92,136.89,16.9591]
[1642525351322,36.14009476,136.92,136.9,0.25]
[1642525351915,36.14009476,136.92,136.9,11.2084]
[1642525352119,36.14009476,136.92,136.91,6.0]
[1642525352319,2.92,136.97,136.91,6.0]
[1642525352552,2.92,136.97,136.91,6.25]
[1642525352719,2.92,136.97,136.9,0.25]
[1642525353320,45.52862653,136.96,136.91,10.9577]
[1642525353520,2.92,136.95,136.92,6.0]
[1642525353723,3.17,136.95,136.92,6.0]
[1642525354121,6.06439994,136.94,136.92,6.0]
[1642525354322,39.7799431,136.93,136.92,6.0]
[1642525354923,39.7799431,136.93,136.9,11.2084]
[1642525355125,39.7799431,136.93,136.91,6.0]
[1642525355722,39.7799431,136.93,136.9,0.25]
[1642525355923,39.7799431,136.93,136.89,17.2091]
[1642525357726,39.7799431,136.93,136.89,16.9591]
[1642525358325,39.7799431,136.93,136.9,0.25]
[1642525358528,39.7799431,136.93,136.89,16.9591]
[1642525359529,39.7799431,136.93,136.9,0.25]